[Event "5e festival international d'échecs d'A"]
[Site "Allauch, France"]
[Date "2023.08.31"]
[Round "7.8"]
[White "Lechevallier, Alexandre"]
[Black "Rigat, Severin"]
[Result "1-0"]
[WhiteElo "1377"]
[BlackElo "1289"]
[PlyCount "91"]
[EventDate "2023.??.??"]
[TimeControl "1"]

1. e4 {[%emt 0:00:00]} e6 {[%emt 0:00:00]} 2. d4 {[%emt 0:00:00]} d5 {[%emt 0:
00:00]} 3. exd5 {[%emt 0:00:00]} exd5 {[%emt 0:00:00]} 4. Nf3 {[%emt 0:00:00]}
Bd6 {[%emt 0:00:00]} 5. Bd3 {[%emt 0:00:00]} Ne7 {[%emt 0:00:00]} 6. O-O {
[%emt 0:00:00]} O-O {[%emt 0:00:00]} 7. c3 {[%emt 0:00:00]} Bf5 {[%emt 0:00:00]
} 8. Bg5 {[%emt 0:00:00]} f6 {[%emt 0:00:00]} 9. Bh4 {[%emt 0:00:00]} Bxd3 {
[%emt 0:00:00]} 10. Qxd3 {[%emt 0:00:00]} Ng6 {[%emt 0:00:00]} 11. Bg3 {
[%emt 0:00:00]} c6 {[%emt 0:00:00]} 12. Nbd2 {[%emt 0:00:00]} Nf4 {[%emt 0:00:
00]} 13. Qf5 {[%emt 0:00:00]} g6 {[%emt 0:00:00]} 14. Qc2 {[%emt 0:00:00]} Ne2+
{[%emt 0:00:00]} 15. Kh1 {[%emt 0:00:00]} Nxg3+ {[%emt 0:00:00]} 16. hxg3 {
[%emt 0:00:00]} f5 {[%emt 0:00:00]} 17. Ne5 {[%emt 0:00:00]} f4 {[%emt 0:00:00]
} 18. Ndf3 {[%emt 0:00:00]} fxg3 {[%emt 0:00:00]} 19. fxg3 {[%emt 0:00:00]} Nd7
{[%emt 0:00:00]} 20. Nxg6 {[%emt 0:00:00]} Rf6 {[%emt 0:00:00]} 21. Nge5 {
[%emt 0:00:00]} Rh6+ {[%emt 0:00:00]} 22. Kg1 {[%emt 0:00:00]} Nf6 {[%emt 0:00:
00]} 23. Qd2 {[%emt 0:00:00]} Qf8 {[%emt 0:00:00]} 24. Qg5+ {[%emt 0:00:00]}
Qg7 {[%emt 0:00:00]} 25. Qxg7+ {[%emt 0:00:00]} Kxg7 {[%emt 0:00:00]} 26. Nh4 {
[%emt 0:00:00]} Rxh4 {[%emt 0:00:00]} 27. gxh4 {[%emt 0:00:00]} Bxe5 {[%emt 0:
00:00]} 28. dxe5 {[%emt 0:00:00]} Ng4 {[%emt 0:00:00]} 29. Rae1 {[%emt 0:00:00]
} Re8 {[%emt 0:00:00]} 30. Rf5 {[%emt 0:00:00]} h6 {[%emt 0:00:00]} 31. h5 {
[%emt 0:00:00]} c5 {[%emt 0:00:00]} 32. g3 {[%emt 0:00:00]} d4 {[%emt 0:00:00]}
33. cxd4 {[%emt 0:00:00]} cxd4 {[%emt 0:00:00]} 34. e6 {[%emt 0:00:00]} Re7 {
[%emt 0:00:00]} 35. Re4 {[%emt 0:00:00]} Nf6 {[%emt 0:00:00]} 36. Re1 {[%emt 0:
00:00]} b6 {[%emt 0:00:00]} 37. Rf4 {[%emt 0:00:00]} Nxh5 {[%emt 0:00:00]} 38.
Rxd4 {[%emt 0:00:00]} Kf6 {[%emt 0:00:00]} 39. g4 {[%emt 0:00:00]} Ng7 {
[%emt 0:00:00]} 40. Rf4+ {[%emt 0:00:00]} Kg6 {[%emt 0:00:00]} 41. Rfe4 {
[%emt 0:00:00]} h5 {[%emt 0:00:00]} 42. gxh5+ {[%emt 0:00:00]} Nxh5 {[%emt 0:
00:00]} 43. Rf1 {[%emt 0:00:00]} Nf6 {[%emt 0:00:00]} 44. Re2 {[%emt 0:00:00]}
Nd5 {[%emt 0:00:00]} 45. Rg2+ {[%emt 0:00:00]} Kh7 {[%emt 0:00:00]} 46. Rf7+ {
[%emt 0:00:00]} 1-0

[Event "5e festival international d'échecs d'A"]
[Site "Allauch, France"]
[Date "2023.09.01"]
[Round "8.4"]
[White "Chaumet, Etienne"]
[Black "Figier, Anthony"]
[Result "1/2-1/2"]
[WhiteElo "2075"]
[BlackElo "1991"]
[PlyCount "109"]
[EventDate "2023.??.??"]
[TimeControl "1"]

1. e4 {[%emt 0:00:00]} Nf6 {[%emt 0:00:00]} 2. e5 {[%emt 0:00:00]} Nd5 {
[%emt 0:00:00]} 3. d4 {[%emt 0:00:00]} d6 {[%emt 0:00:00]} 4. c4 {[%emt 0:00:
00]} Nb6 {[%emt 0:00:00]} 5. exd6 {[%emt 0:00:00]} cxd6 {[%emt 0:00:00]} 6. Nc3
{[%emt 0:00:00]} g6 {[%emt 0:00:00]} 7. Be3 {[%emt 0:00:00]} Bg7 {[%emt 0:00:
00]} 8. Rc1 {[%emt 0:00:00]} O-O {[%emt 0:00:00]} 9. Nf3 {[%emt 0:00:00]} Bg4 {
[%emt 0:00:00]} 10. Be2 {[%emt 0:00:00]} Nc6 {[%emt 0:00:00]} 11. d5 {[%emt 0:
00:00]} Bxf3 {[%emt 0:00:00]} 12. gxf3 {[%emt 0:00:00]} Ne5 {[%emt 0:00:00]}
13. b3 {[%emt 0:00:00]} Qc8 {[%emt 0:00:00]} 14. f4 {[%emt 0:00:00]} Ned7 {
[%emt 0:00:00]} 15. Ne4 {[%emt 0:00:00]} Nf6 {[%emt 0:00:00]} 16. Nxf6+ {
[%emt 0:00:00]} Bxf6 {[%emt 0:00:00]} 17. Bg4 {[%emt 0:00:00]} Qd8 {[%emt 0:00:
00]} 18. f5 {[%emt 0:00:00]} Nd7 {[%emt 0:00:00]} 19. fxg6 {[%emt 0:00:00]}
hxg6 {[%emt 0:00:00]} 20. h4 {[%emt 0:00:00]} Kg7 {[%emt 0:00:00]} 21. h5 {
[%emt 0:00:00]} Rh8 {[%emt 0:00:00]} 22. f4 {[%emt 0:00:00]} Qa5+ {[%emt 0:00:
00]} 23. Kf2 {[%emt 0:00:00]} Nc5 {[%emt 0:00:00]} 24. Qc2 {[%emt 0:00:00]}
Rag8 {[%emt 0:00:00]} 25. hxg6 {[%emt 0:00:00]} fxg6 {[%emt 0:00:00]} 26. Kf3 {
[%emt 0:00:00]} Rxh1 {[%emt 0:00:00]} 27. Rxh1 {[%emt 0:00:00]} Qc3 {[%emt 0:
00:00]} 28. Qxc3 {[%emt 0:00:00]} Bxc3 {[%emt 0:00:00]} 29. Rh2 {[%emt 0:00:00]
} b6 {[%emt 0:00:00]} 30. Rc2 {[%emt 0:00:00]} Bf6 {[%emt 0:00:00]} 31. b4 {
[%emt 0:00:00]} Nd3 {[%emt 0:00:00]} 32. Bd2 {[%emt 0:00:00]} Rh8 {[%emt 0:00:
00]} 33. Ke3 {[%emt 0:00:00]} Nb2 {[%emt 0:00:00]} 34. Bc1 {[%emt 0:00:00]} Na4
{[%emt 0:00:00]} 35. Kd3 {[%emt 0:00:00]} Rh1 {[%emt 0:00:00]} 36. Bd7 {
[%emt 0:00:00]} Nc3 {[%emt 0:00:00]} 37. Bd2 {[%emt 0:00:00]} Nd1 {[%emt 0:00:
00]} 38. c5 {[%emt 0:00:00]} bxc5 {[%emt 0:00:00]} 39. bxc5 {[%emt 0:00:00]}
dxc5 {[%emt 0:00:00]} 40. Rxc5 {[%emt 0:00:00]} Nf2+ {[%emt 0:00:00]} 41. Ke3 {
[%emt 0:00:00]} Rh2 {[%emt 0:00:00]} 42. Rc7 {[%emt 0:00:00]} Nd1+ {[%emt 0:00:
00]} 43. Kd3 {[%emt 0:00:00]} Nf2+ {[%emt 0:00:00]} 44. Ke3 {[%emt 0:00:00]} g5
{[%emt 0:00:00]} 45. d6 {[%emt 0:00:00]} gxf4+ {[%emt 0:00:00]} 46. Kxf4 {
[%emt 0:00:00]} Nd3+ {[%emt 0:00:00]} 47. Ke3 {[%emt 0:00:00]} Bg5+ {[%emt 0:
00:00]} 48. Kxd3 {[%emt 0:00:00]} Rxd2+ {[%emt 0:00:00]} 49. Ke4 {[%emt 0:00:
00]} exd6 {[%emt 0:00:00]} 50. Bc6+ {[%emt 0:00:00]} Kf6 {[%emt 0:00:00]} 51.
Rxa7 {[%emt 0:00:00]} Re2+ {[%emt 0:00:00]} 52. Kd3 {[%emt 0:00:00]} Rd2+ {
[%emt 0:00:00]} 53. Ke4 {[%emt 0:00:00]} Re2+ {[%emt 0:00:00]} 54. Kd3 {
[%emt 0:00:00]} Rd2+ {[%emt 0:00:00]} 55. Ke4 {[%emt 0:00:00] Ke5+} 1/2-1/2

[Event "5e festival international d'échecs d'A"]
[Site "Allauch, France"]
[Date "2023.09.01"]
[Round "8.5"]
[White "Toth, Kincso"]
[Black "Cauture, Baptiste"]
[Result "0-1"]
[WhiteElo "1709"]
[BlackElo "1575"]
[PlyCount "94"]
[EventDate "2023.??.??"]
[TimeControl "1"]

1. e4 {[%emt 0:00:00]} c5 {[%emt 0:00:00]} 2. d4 {[%emt 0:00:00]} cxd4 {
[%emt 0:00:00]} 3. c3 {[%emt 0:00:00]} dxc3 {[%emt 0:00:00]} 4. Nxc3 {[%emt 0:
00:00]} Nc6 {[%emt 0:00:00]} 5. Nf3 {[%emt 0:00:00]} d6 {[%emt 0:00:00]} 6. Bc4
{[%emt 0:00:00]} a6 {[%emt 0:00:00]} 7. O-O {[%emt 0:00:00]} Nf6 {[%emt 0:00:
00]} 8. Bf4 {[%emt 0:00:00]} Bg4 {[%emt 0:00:00]} 9. h3 {[%emt 0:00:00]} Bh5 {
[%emt 0:00:00]} 10. Be2 {[%emt 0:00:00]} e6 {[%emt 0:00:00]} 11. Rc1 {[%emt 0:
00:00]} Be7 {[%emt 0:00:00]} 12. Qb3 {[%emt 0:00:00]} Qb8 {[%emt 0:00:00]} 13.
Rfd1 {[%emt 0:00:00]} O-O {[%emt 0:00:00]} 14. Na4 {[%emt 0:00:00]} Nxe4 {
[%emt 0:00:00]} 15. Nb6 {[%emt 0:00:00]} e5 {[%emt 0:00:00]} 16. Be3 {[%emt 0:
00:00]} Qc7 {[%emt 0:00:00]} 17. Nxa8 {[%emt 0:00:00]} Rxa8 {[%emt 0:00:00]}
18. Bb6 {[%emt 0:00:00]} Qc8 {[%emt 0:00:00]} 19. Bc4 {[%emt 0:00:00]} Bxf3 {
[%emt 0:00:00]} 20. Qxf3 {[%emt 0:00:00]} Ng5 {[%emt 0:00:00]} 21. Qb3 {
[%emt 0:00:00]} Qf5 {[%emt 0:00:00]} 22. Bd5 {[%emt 0:00:00]} Rc8 {[%emt 0:00:
00]} 23. Be3 {[%emt 0:00:00]} Qd7 {[%emt 0:00:00]} 24. Bb6 {[%emt 0:00:00]} Qf5
{[%emt 0:00:00]} 25. Rc3 {[%emt 0:00:00]} h6 {[%emt 0:00:00]} 26. Rdc1 {
[%emt 0:00:00]} Rf8 {[%emt 0:00:00]} 27. Bxc6 {[%emt 0:00:00]} bxc6 {[%emt 0:
00:00]} 28. Rxc6 {[%emt 0:00:00]} Ne4 {[%emt 0:00:00]} 29. Qd5 {[%emt 0:00:00]}
Bg5 {[%emt 0:00:00]} 30. R1c2 {[%emt 0:00:00]} Bf4 {[%emt 0:00:00]} 31. Qd3 {
[%emt 0:00:00]} d5 {[%emt 0:00:00]} 32. Qxd5 {[%emt 0:00:00]} Ng5 {[%emt 0:00:
00]} 33. R6c3 {[%emt 0:00:00]} Qg6 {[%emt 0:00:00]} 34. Kf1 {[%emt 0:00:00]}
Qxb6 {[%emt 0:00:00]} 35. g3 {[%emt 0:00:00]} Bxg3 {[%emt 0:00:00]} 36. Rxg3 {
[%emt 0:00:00]} Rd8 {[%emt 0:00:00]} 37. Qc6 {[%emt 0:00:00]} Rd1+ {[%emt 0:00:
00]} 38. Kg2 {[%emt 0:00:00]} Qd4 {[%emt 0:00:00]} 39. Re3 {[%emt 0:00:00]} Rb1
{[%emt 0:00:00]} 40. Qe8+ {[%emt 0:00:00]} Kh7 {[%emt 0:00:00]} 41. Qxe5 {
[%emt 0:00:00]} Qd1 {[%emt 0:00:00]} 42. Kg3 {[%emt 0:00:00]} Qh1 {[%emt 0:00:
00]} 43. Qf5+ {[%emt 0:00:00]} g6 {[%emt 0:00:00]} 44. Qg4 {[%emt 0:00:00]}
Rg1+ {[%emt 0:00:00]} 45. Kf4 {[%emt 0:00:00]} Rxg4+ {[%emt 0:00:00]} 46. hxg4
{[%emt 0:00:00]} Qd5 {[%emt 0:00:00]} 47. Rce2 {[%emt 0:00:00]} Qd6+ {[%emt 0:
00:00]} 0-1

[Event "5e festival international d'échecs d'A"]
[Site "Allauch, France"]
[Date "2023.09.01"]
[Round "8.6"]
[White "Maggio, Lucas"]
[Black "Hoang Villemagne, Mathieu"]
[Result "0-1"]
[WhiteElo "1321"]
[BlackElo "1350"]
[PlyCount "200"]
[EventDate "2023.??.??"]
[TimeControl "1"]

1. c4 {[%emt 0:00:00]} e5 {[%emt 0:00:00]} 2. g3 {[%emt 0:00:00]} a6 {[%emt 0:
00:00]} 3. Bg2 {[%emt 0:00:00]} Bc5 {[%emt 0:00:00]} 4. Nc3 {[%emt 0:00:00]}
Nc6 {[%emt 0:00:00]} 5. Nf3 {[%emt 0:00:00]} d6 {[%emt 0:00:00]} 6. O-O {
[%emt 0:00:00]} Be6 {[%emt 0:00:00]} 7. d3 {[%emt 0:00:00]} Qd7 {[%emt 0:00:00]
} 8. Ng5 {[%emt 0:00:00]} Bg4 {[%emt 0:00:00]} 9. h3 {[%emt 0:00:00]} Bh5 {
[%emt 0:00:00]} 10. a3 {[%emt 0:00:00]} Ba7 {[%emt 0:00:00]} 11. b4 {[%emt 0:
00:00]} h6 {[%emt 0:00:00]} 12. Nf3 {[%emt 0:00:00]} Bxf3 {[%emt 0:00:00]} 13.
exf3 {[%emt 0:00:00]} Nge7 {[%emt 0:00:00]} 14. f4 {[%emt 0:00:00]} O-O {
[%emt 0:00:00]} 15. Be3 {[%emt 0:00:00]} exf4 {[%emt 0:00:00]} 16. Bxf4 {
[%emt 0:00:00]} Rfe8 {[%emt 0:00:00]} 17. Ne2 {[%emt 0:00:00]} Nf5 {[%emt 0:00:
00]} 18. Kh2 {[%emt 0:00:00]} Nd8 {[%emt 0:00:00]} 19. Bc1 {[%emt 0:00:00]} Qe7
{[%emt 0:00:00]} 20. Nf4 {[%emt 0:00:00]} c6 {[%emt 0:00:00]} 21. Bb2 {[%emt 0:
00:00]} Ne6 {[%emt 0:00:00]} 22. Qg4 {[%emt 0:00:00]} Qg5 {[%emt 0:00:00]} 23.
Nxe6 {[%emt 0:00:00]} Rxe6 {[%emt 0:00:00]} 24. Qxg5 {[%emt 0:00:00]} hxg5 {
[%emt 0:00:00]} 25. Be4 {[%emt 0:00:00]} Nd4 {[%emt 0:00:00]} 26. Bxd4 {
[%emt 0:00:00]} Bxd4 {[%emt 0:00:00]} 27. Ra2 {[%emt 0:00:00]} Rf8 {[%emt 0:00:
00]} 28. Kg2 {[%emt 0:00:00]} f5 {[%emt 0:00:00]} 29. Bf3 {[%emt 0:00:00]} Rfe8
{[%emt 0:00:00]} 30. b5 {[%emt 0:00:00]} axb5 {[%emt 0:00:00]} 31. cxb5 {
[%emt 0:00:00]} d5 {[%emt 0:00:00]} 32. bxc6 {[%emt 0:00:00]} bxc6 {[%emt 0:00:
00]} 33. Rc2 {[%emt 0:00:00]} Rg6 {[%emt 0:00:00]} 34. Bh5 {[%emt 0:00:00]}
Ree6 {[%emt 0:00:00]} 35. Bxg6 {[%emt 0:00:00]} Rxg6 {[%emt 0:00:00]} 36. Re1 {
[%emt 0:00:00]} Kf7 {[%emt 0:00:00]} 37. Rce2 {[%emt 0:00:00]} Bc5 {[%emt 0:00:
00]} 38. Re5 {[%emt 0:00:00]} Rf6 {[%emt 0:00:00]} 39. a4 {[%emt 0:00:00]} f4 {
[%emt 0:00:00]} 40. Rxg5 {[%emt 0:00:00]} fxg3 {[%emt 0:00:00]} 41. fxg3 {
[%emt 0:00:00]} Rf2+ {[%emt 0:00:00]} 42. Kh1 {[%emt 0:00:00]} Ra2 {[%emt 0:00:
00]} 43. Rf5+ {[%emt 0:00:00]} Kg6 {[%emt 0:00:00]} 44. Rf4 {[%emt 0:00:00]} d4
{[%emt 0:00:00]} 45. Re6+ {[%emt 0:00:00]} Kh7 {[%emt 0:00:00]} 46. Rxc6 {
[%emt 0:00:00]} Bb4 {[%emt 0:00:00]} 47. Rc4 {[%emt 0:00:00]} Rxa4 {[%emt 0:00:
00]} 48. Rfxd4 {[%emt 0:00:00]} Ra1+ {[%emt 0:00:00]} 49. Kg2 {[%emt 0:00:00]}
Be7 {[%emt 0:00:00]} 50. Kf3 {[%emt 0:00:00]} Bf6 {[%emt 0:00:00]} 51. Rg4 {
[%emt 0:00:00]} Rd1 {[%emt 0:00:00]} 52. d4 {[%emt 0:00:00]} Kg8 {[%emt 0:00:
00]} 53. Ke4 {[%emt 0:00:00]} Kf7 {[%emt 0:00:00]} 54. d5 {[%emt 0:00:00]} Re1+
{[%emt 0:00:00]} 55. Kf3 {[%emt 0:00:00]} Ke7 {[%emt 0:00:00]} 56. Rc7+ {
[%emt 0:00:00]} Kd6 {[%emt 0:00:00]} 57. Rcxg7 {[%emt 0:00:00]} Bxg7 {[%emt 0:
00:00]} 58. Rxg7 {[%emt 0:00:00]} Kxd5 {[%emt 0:00:00]} 59. Kg4 {[%emt 0:00:00]
} Ke6 {[%emt 0:00:00]} 60. Kg5 {[%emt 0:00:00]} Re5+ {[%emt 0:00:00]} 61. Kf4 {
[%emt 0:00:00]} Rc5 {[%emt 0:00:00]} 62. h4 {[%emt 0:00:00]} Kf6 {[%emt 0:00:
07]} 63. Rg5 {[%emt 0:00:00]} Rc4+ {[%emt 0:00:00]} 64. Kf3 {[%emt 0:00:00]}
Rc3+ {[%emt 0:00:00]} 65. Ke4 {[%emt 0:00:00]} Rc1 {[%emt 0:00:00]} 66. Rf5+ {
[%emt 0:00:00]} Kg6 {[%emt 0:00:00]} 67. g4 {[%emt 0:00:00]} Rc4+ {[%emt 0:00:
00]} 68. Kf3 {[%emt 0:00:00]} Rc3+ {[%emt 0:00:00]} 69. Kg2 {[%emt 0:00:00]}
Kh6 {[%emt 0:00:00]} 70. Kf2 {[%emt 0:00:00]} Kg6 {[%emt 0:00:00]} 71. Rf3 {
[%emt 0:00:00]} Rc4 {[%emt 0:00:00]} 72. Kg3 {[%emt 0:00:00]} Ra4 {[%emt 0:00:
00]} 73. h5+ {[%emt 0:00:00]} Kh6 {[%emt 0:00:00]} 74. Rf5 {[%emt 0:00:00]} Ra6
{[%emt 0:00:00]} 75. Kh4 {[%emt 0:00:00]} Ra4 {[%emt 0:00:00]} 76. Rf6+ {
[%emt 0:00:00]} Kg7 {[%emt 0:00:00]} 77. Rg6+ {[%emt 0:00:00]} Kh7 {[%emt 0:00:
00]} 78. Kg5 {[%emt 0:00:00]} Ra5+ {[%emt 0:00:00]} 79. Kf4 {[%emt 0:00:00]}
Ra4+ {[%emt 0:00:00]} 80. Ke5 {[%emt 0:00:00]} Ra5+ {[%emt 0:00:00]} 81. Kd4 {
[%emt 0:00:00]} Rb5 {[%emt 0:00:00]} 82. Kc4 {[%emt 0:00:00]} Ra5 {[%emt 0:00:
00]} 83. Kb4 {[%emt 0:00:00]} Re5 {[%emt 0:00:00]} 84. g5 {[%emt 0:00:00]} Rf5
{[%emt 0:00:00]} 85. Kc4 {[%emt 0:00:00]} Ra5 {[%emt 0:00:00]} 86. Kd4 {
[%emt 0:00:00]} Rb5 {[%emt 0:00:00]} 87. Ke4 {[%emt 0:00:00]} Ra5 {[%emt 0:00:
00]} 88. Kf4 {[%emt 0:00:00]} Rb5 {[%emt 0:00:00]} 89. Kg4 {[%emt 0:00:00]} Rc5
{[%emt 0:00:00]} 90. Rf6 {[%emt 0:00:00]} Kg7 {[%emt 0:00:00]} 91. h6+ {
[%emt 0:00:00]} Kh7 {[%emt 0:00:00]} 92. Kh5 {[%emt 0:00:00]} Kh8 {[%emt 0:00:
00]} 93. Kg6 {[%emt 0:00:00]} Rc8 {[%emt 0:00:00]} 94. h7 {[%emt 0:00:00]} Rc6
{[%emt 0:00:00]} 95. Kh5 {[%emt 0:00:00]} Rc5 {[%emt 0:00:00]} 96. Kh6 {
[%emt 0:00:00]} Rc6 {[%emt 0:00:00]} 97. Kg6 {[%emt 0:00:00]} Rb6 {[%emt 0:00:
00]} 98. Kf7 {[%emt 0:00:00]} Rb7+ {[%emt 0:00:00]} 99. Ke6 {[%emt 0:00:00]}
Rb6+ {[%emt 0:00:00]} 100. Kd7 {[%emt 0:00:00]} Rb7+ {[%emt 0:00:00]} 0-1

[Event "5e festival international d'échecs d'A"]
[Site "Allauch, France"]
[Date "2023.09.01"]
[Round "8.7"]
[White "Omelchenko, Danila"]
[Black "Lechevallier, Alexandre"]
[Result "1-0"]
[WhiteElo "1199"]
[BlackElo "1377"]
[PlyCount "117"]
[EventDate "2023.??.??"]
[TimeControl "1"]

1. b3 {[%emt 0:00:00]} e5 {[%emt 0:00:00]} 2. Bb2 {[%emt 0:00:19]} Nc6 {
[%emt 0:00:00]} 3. e3 {[%emt 0:00:00]} d6 {[%emt 0:00:00]} 4. Bb5 {[%emt 0:00:
00]} Bd7 {[%emt 0:00:00]} 5. Ne2 {[%emt 0:00:00]} a6 {[%emt 0:00:00]} 6. Bxc6 {
[%emt 0:00:00]} Bxc6 {[%emt 0:00:00]} 7. O-O {[%emt 0:00:00]} Qg5 {[%emt 0:00:
00]} 8. Ng3 {[%emt 0:00:00]} Nf6 {[%emt 0:00:00]} 9. f4 {[%emt 0:00:00]} exf4 {
[%emt 0:00:00]} 10. exf4 {[%emt 0:00:00]} Qd5 {[%emt 0:00:00]} 11. Re1+ {
[%emt 0:00:00]} Be7 {[%emt 0:00:00]} 12. Re2 {[%emt 0:00:00]} O-O {[%emt 0:00:
00]} 13. c4 {[%emt 0:00:00]} Qc5+ {[%emt 0:00:00]} 14. d4 {[%emt 0:00:00]} Qb6
{[%emt 0:00:00]} 15. Rxe7 {[%emt 0:00:00]} Rfe8 {[%emt 0:00:00]} 16. Rxe8+ {
[%emt 0:00:00]} Rxe8 {[%emt 0:00:00]} 17. Kh1 {[%emt 0:00:00]} d5 {[%emt 0:00:
00]} 18. c5 {[%emt 0:00:00]} Qa7 {[%emt 0:00:00]} 19. Nd2 {[%emt 0:00:00]} b5 {
[%emt 0:01:35]} 20. Nf3 {[%emt 0:00:00]} Ng4 {[%emt 0:00:00]} 21. Kg1 {[%emt 0:
00:00]} f6 {[%emt 0:00:00]} 22. Qd2 {[%emt 0:00:00]} Qa8 {[%emt 0:00:00]} 23.
Re1 {[%emt 0:00:00]} Bd7 {[%emt 0:00:00]} 24. h3 {[%emt 0:00:00]} Nh6 {[%emt 0:
00:00]} 25. Rxe8+ {[%emt 0:00:00]} Qxe8 {[%emt 0:00:00]} 26. Qe2 {[%emt 0:00:
00]} Qxe2 {[%emt 0:00:00]} 27. Nxe2 {[%emt 0:00:00]} c6 {[%emt 0:00:00]} 28.
Kf2 {[%emt 0:00:00]} Nf7 {[%emt 0:00:00]} 29. g4 {[%emt 0:00:00]} g6 {[%emt 0:
00:00]} 30. Kg3 {[%emt 0:00:00]} f5 {[%emt 0:00:00]} 31. Ne5 {[%emt 0:00:00]}
Nxe5 {[%emt 0:00:00]} 32. dxe5 {[%emt 0:00:00]} Kf7 {[%emt 0:00:00]} 33. Nd4 {
[%emt 0:00:00]} h6 {[%emt 0:00:00]} 34. e6+ {[%emt 0:00:00]} Bxe6 {[%emt 0:00:
00]} 35. Nxc6 {[%emt 0:00:00]} Ke8 {[%emt 0:00:00]} 36. Nb4 {[%emt 0:00:00]}
Bc8 {[%emt 0:00:00]} 37. Nxd5 {[%emt 0:00:00]} Bb7 {[%emt 0:00:00]} 38. Ne3 {
[%emt 0:00:00]} Be4 {[%emt 0:00:00]} 39. gxf5 {[%emt 0:00:00]} gxf5 {[%emt 0:
00:00]} 40. Bg7 {[%emt 0:00:00]} h5 {[%emt 0:00:00]} 41. Kh4 {[%emt 0:00:00]}
Kf7 {[%emt 0:00:00]} 42. Be5 {[%emt 0:00:00]} Kg6 {[%emt 0:00:00]} 43. b4 {
[%emt 0:00:00]} Bf3 {[%emt 0:00:00]} 44. Kg3 {[%emt 0:00:00]} Be4 {[%emt 0:00:
00]} 45. h4 {[%emt 0:00:00]} Kf7 {[%emt 0:00:00]} 46. Kf2 {[%emt 0:00:00]} Ke6
{[%emt 0:00:00]} 47. Ke2 {[%emt 0:00:00]} Bc6 {[%emt 0:00:00]} 48. Kd3 {
[%emt 0:00:00]} Bb7 {[%emt 0:00:00]} 49. Kd4 {[%emt 0:00:00]} Be4 {[%emt 0:00:
00]} 50. Nf1 {[%emt 0:00:00]} Bg2 {[%emt 0:00:00]} 51. Ng3 {[%emt 0:00:00]} Bf3
{[%emt 0:00:00]} 52. a3 {[%emt 0:00:00]} Bg4 {[%emt 0:00:00]} 53. c6 {[%emt 0:
00:00]} Ke7 {[%emt 0:00:19]} 54. Kc5 {[%emt 0:00:00]} Kd8 {[%emt 0:00:00]} 55.
Kb6 {[%emt 0:00:00]} Kc8 {[%emt 0:00:00]} 56. Kxa6 {[%emt 0:00:00]} Kd8 {
[%emt 0:00:00]} 57. Kb7 {[%emt 0:00:00]} Ke7 {[%emt 0:00:33]} 58. c7 {[%emt 0:
00:00]} Kd7 {[%emt 0:00:00]} 59. c8=Q+ {[%emt 0:00:00]} 1-0

[Event "5e festival international d'échecs d'A"]
[Site "Allauch, France"]
[Date "2023.09.01"]
[Round "8.8"]
[White "Sembel Rudelle, Gael"]
[Black "Proud'Hon, Gabriel"]
[Result "1-0"]
[WhiteElo "1390"]
[BlackElo "1340"]
[PlyCount "111"]
[EventDate "2023.??.??"]
[TimeControl "1"]

1. e4 {[%emt 0:00:00]} c5 {[%emt 0:00:00]} 2. c3 {[%emt 0:00:00]} d5 {[%emt 0:
00:00]} 3. exd5 {[%emt 0:00:00]} Qxd5 {[%emt 0:00:00]} 4. d4 {[%emt 0:00:00]}
g6 {[%emt 0:00:00]} 5. Nf3 {[%emt 0:00:00]} Bg7 {[%emt 0:00:00]} 6. Be3 {
[%emt 0:00:00]} cxd4 {[%emt 0:00:00]} 7. cxd4 {[%emt 0:00:00]} Nc6 {[%emt 0:00:
00]} 8. Nc3 {[%emt 0:00:00]} Qd8 {[%emt 0:00:00]} 9. Be2 {[%emt 0:00:00]} Nf6 {
[%emt 0:00:00]} 10. O-O {[%emt 0:00:00]} O-O {[%emt 0:00:00]} 11. h3 {[%emt 0:
00:00]} a6 {[%emt 0:00:00]} 12. Qd2 {[%emt 0:00:00]} b5 {[%emt 0:00:00]} 13. a3
{[%emt 0:00:00]} Bb7 {[%emt 0:00:00]} 14. Ne5 {[%emt 0:00:00]} Rc8 {[%emt 0:00:
00]} 15. Bf3 {[%emt 0:00:00]} Ba8 {[%emt 0:00:00]} 16. Nxc6 {[%emt 0:00:00]}
Bxc6 {[%emt 0:00:00]} 17. Bxc6 {[%emt 0:00:00]} Rxc6 {[%emt 0:00:00]} 18. Rac1
{[%emt 0:00:00]} Rd6 {[%emt 0:00:00]} 19. Rfd1 {[%emt 0:00:00]} Qa8 {[%emt 0:
00:00]} 20. f3 {[%emt 0:00:00]} Rfd8 {[%emt 0:00:00]} 21. Qf2 {[%emt 0:00:00]}
Nd5 {[%emt 0:00:00]} 22. Nxd5 {[%emt 0:00:00]} Rxd5 {[%emt 0:00:00]} 23. Rd2 {
[%emt 0:00:00]} R8d7 {[%emt 0:00:00]} 24. Rcd1 {[%emt 0:00:00]} Qd8 {[%emt 0:
00:00]} 25. f4 {[%emt 0:00:00]} R7d6 {[%emt 0:00:00]} 26. Rd3 {[%emt 0:00:00]}
e5 {[%emt 0:00:00]} 27. fxe5 {[%emt 0:00:00]} Bxe5 {[%emt 0:00:00]} 28. R3d2 {
[%emt 0:00:00]} Bg7 {[%emt 0:00:00]} 29. Kh1 {[%emt 0:00:00]} Bf6 {[%emt 0:00:
00]} 30. Rd3 {[%emt 0:00:00]} Bh4 {[%emt 0:00:00]} 31. Qd2 {[%emt 0:00:00]} Bf6
{[%emt 0:00:00]} 32. Bf2 {[%emt 0:00:00]} Rd7 {[%emt 0:00:00]} 33. Be3 {
[%emt 0:00:00]} R7d6 {[%emt 0:00:00]} 34. Qf2 {[%emt 0:00:00]} Bh4 {[%emt 0:00:
00]} 35. Qg1 {[%emt 0:00:00]} Bf6 {[%emt 0:00:00]} 36. R1d2 {[%emt 0:00:00]}
Qd7 {[%emt 0:00:00]} 37. Qd1 {[%emt 0:00:00]} Qd8 {[%emt 0:00:00]} 38. Qg4 {
[%emt 0:00:00]} Qd7 {[%emt 0:00:00]} 39. Qd1 {[%emt 0:00:00]} Qd8 {[%emt 0:00:
00]} 40. Qg4 {[%emt 0:00:00]} Qd7 {[%emt 0:00:00]} 41. Qxd7 {[%emt 0:00:00]}
Rxd7 {[%emt 0:00:00]} 42. Kg1 {[%emt 0:00:00]} Kg7 {[%emt 0:00:00]} 43. Kf2 {
[%emt 0:00:00]} Bh4+ {[%emt 0:00:00]} 44. g3 {[%emt 0:00:00]} Rf5+ {[%emt 0:00:
00]} 45. Kg2 {[%emt 0:00:00]} Bf6 {[%emt 0:00:00]} 46. d5 {[%emt 0:00:00]} Be5
{[%emt 0:00:00]} 47. Bd4 {[%emt 0:00:00]} Bxd4 {[%emt 0:00:00]} 48. Rxd4 {
[%emt 0:00:00]} Re5 {[%emt 0:00:00]} 49. Kf3 {[%emt 0:00:00]} Rd6 {[%emt 0:00:
00]} 50. b4 {[%emt 0:00:00]} Rf6+ {[%emt 0:00:00]} 51. Kg2 {[%emt 0:00:00]} Rd6
{[%emt 0:00:00]} 52. g4 {[%emt 0:00:00]} Re3 {[%emt 0:00:00]} 53. Rc2 {[%emt 0:
00:00]} Rxa3 {[%emt 0:00:00]} 54. Rc6 {[%emt 0:00:00]} Rd7 {[%emt 0:00:00]} 55.
d6 {[%emt 0:00:00]} a5 {[%emt 0:00:00]} 56. Rc7 {[%emt 0:00:00]} 1-0